fUSD/lending_fUSD_20250503
["ID","MTS","AMOUNT","RATE_DAILY","PERIOD"]
[359726567,1746282641215,-450.0,0.00019624,2]
[359726568,1746282641225,-450.0,0.00019624,2]
[359726569,1746282641234,-450.0,0.00019624,2]
[359726570,1746282641244,-450.0,0.00019624,2]
[359726571,1746282641254,-1041.94,0.00019624,2]
[359726572,1746282641263,-450.0,0.00019624,2]
[359726573,1746282641274,-450.0,0.00019624,2]
[359726574,1746282641284,-450.0,0.00019624,2]
[359726575,1746282641293,-450.0,0.00019624,2]
[359726576,1746282641303,-450.0,0.00019624,2]
[359726577,1746282641314,-450.0,0.00019624,2]
[359726578,1746282641324,-450.0,0.00019624,2]
[359726579,1746282641334,-761.52,0.00019624,2]
[359726580,1746282641344,-450.0,0.00019624,2]
[359726581,1746282641355,-450.0,0.00019624,2]
[359726582,1746282641364,-390.10366394,0.00019624,2]
[359726583,1746282641373,-450.0,0.00019624,2]
[359726584,1746282641383,-450.0,0.00019624,2]
[359726585,1746282641392,-450.0,0.00019624,2]
[359726586,1746282641402,-450.0,0.00019624,2]
[359726587,1746282641411,-450.0,0.00019624,2]
[359726588,1746282641420,-592.03,0.00019624,2]
[359726589,1746282641430,-490.03,0.00019624,2]
[359726590,1746282641439,-450.0,0.00019624,2]
[359726591,1746282641449,-450.0,0.00019624,2]
[359726592,1746282641458,-500.0,0.00019624,2]
[359726593,1746282641467,-450.0,0.00019624,2]
[359726594,1746282641476,-450.0,0.00019624,2]
[359726595,1746282641486,-450.0,0.00019624,2]
[359726596,1746282641497,-450.0,0.00019624,2]
[359726597,1746282641508,-450.0,0.00019624,2]
[359726598,1746282641517,-450.0,0.00019624,2]
[359726599,1746282641527,-450.0,0.00019624,2]
[359726600,1746282641537,-450.0,0.00019624,2]
[359726601,1746282641546,-450.0,0.00019624,2]
[359726602,1746282641555,-450.0,0.00019624,2]
[359726603,1746282641565,-638.34,0.00019624,2]
[359726604,1746282641574,-230.0,0.00019624,2]
[359726605,1746282641583,-450.0,0.00019624,2]
[359726606,1746282641592,-841.13,0.00019624,2]
[359726607,1746282641602,-450.0,0.00019624,2]
[359726608,1746282641613,-450.0,0.00019624,2]
[359726609,1746282641623,-450.0,0.00019624,2]
[359726610,1746282641632,-450.0,0.00019624,2]
[359726611,1746282641641,-450.0,0.00019624,2]
[359726612,1746282641654,-450.0,0.00019624,2]
[359726613,1746282641663,-479.20352983,0.00019624,2]
[359726614,1746282641673,-529.54923781,0.00019624,2]
[359726615,1746282641683,-482.04692344,0.00019624,2]
[359726616,1746282641692,-450.0,0.00019624,2]
[359726617,1746282641703,-634.49,0.00019624,2]
[359726618,1746282641714,-473.97622075,0.00019624,2]
[359726619,1746282641723,-450.0,0.00019624,2]
[359726620,1746282641732,-450.0,0.00019624,2]
[359726621,1746282641742,-450.0,0.00019624,2]
[359726622,1746282641753,-450.0,0.00019624,2]
[359726623,1746282641763,-450.0,0.00019624,2]
[359726624,1746282641773,-523.20208212,0.00019624,2]
[359726625,1746282641783,-450.0,0.00019624,2]
[359726626,1746282641791,-450.0,0.00019624,2]
[359726627,1746282641801,-450.0,0.00019624,2]
[359726628,1746282641811,-450.0,0.00019624,2]
[359726629,1746282641822,-450.0,0.00019624,2]
[359726630,1746282641831,-564.89707459,0.00019624,2]
[359726631,1746282641841,-450.0,0.00019624,2]
[359726632,1746282641852,-450.0,0.00019624,2]
[359726633,1746282641914,-510.92426429,0.00019624,2]
[359726634,1746282641923,-470.0,0.00019624,2]
[359726635,1746282641932,-450.0,0.00019624,2]
[359726636,1746282641941,-450.0,0.00019624,2]
[359726637,1746282641950,-450.0,0.00019624,2]
[359726638,1746282641959,-533.95367948,0.00019624,2]
[359726639,1746282641968,-450.0,0.00019624,2]
[359726640,1746282641977,-450.0,0.00019624,2]
[359726641,1746282641986,-450.0,0.00019624,2]
[359726642,1746282641995,-450.0,0.00019624,2]
[359726643,1746282642004,-450.0,0.00019624,2]
[359726644,1746282642013,-450.0,0.00019624,2]
[359726645,1746282642022,-450.0,0.00019624,2]
[359726646,1746282642031,-450.0,0.00019624,2]
[359726647,1746282642040,-450.0,0.00019624,2]
[359726648,1746282642049,-450.0,0.00019624,2]
[359726649,1746282642059,-450.0,0.00019624,2]
[359726650,1746282642069,-450.0,0.00019624,2]
[359726651,1746282642078,-450.0,0.00019624,2]
[359726652,1746282642087,-450.0,0.00019624,2]
[359726653,1746282642096,-450.0,0.00019624,2]
[359726654,1746282642107,-450.0,0.00019624,2]
[359726655,1746282642118,-450.0,0.00019624,2]
[359726656,1746282642127,-450.0,0.00019624,2]
[359726657,1746282642137,-533.98,0.00019624,2]
[359726658,1746282642147,-450.0,0.00019624,2]
[359726659,1746282642156,-450.0,0.00019624,2]
[359726660,1746282642165,-450.0,0.00019624,2]
[359726661,1746282642174,-450.0,0.00019624,2]
[359726662,1746282642183,-450.0,0.00019624,2]
[359726663,1746282642193,-450.0,0.00019624,2]
[359726664,1746282642202,-450.0,0.00019624,2]
[359726665,1746282642212,-450.0,0.00019624,2]
[359726666,1746282642221,-450.0,0.00019624,2]
[359726667,1746282642230,-459.43,0.00019624,2]
[359726668,1746282642239,-450.0,0.00019624,2]
[359726669,1746282642248,-450.0,0.00019624,2]
[359726670,1746282642258,-480.61657555,0.00019624,2]
[359726671,1746282642267,-450.0,0.00019624,2]
[359726672,1746282642276,-450.0,0.00019624,2]
[359726673,1746282642285,-450.0,0.00019624,2]
[359726674,1746282642295,-450.0,0.00019624,2]
[359726675,1746282642304,-450.0,0.00019624,2]
[359726676,1746282642313,-450.0,0.00019624,2]
[359726677,1746282642322,-185.50934107,0.00019624,2]
[359726678,1746282642331,-450.0,0.00019624,2]
[359726679,1746282642340,-450.0,0.00019624,2]
[359726680,1746282642349,-450.0,0.00019624,2]
[359726681,1746282642358,-450.0,0.00019624,2]
[359726682,1746282642367,-450.0,0.00019624,2]
[359726683,1746282642377,-670.86,0.00019624,2]
[359726684,1746282642386,-450.0,0.00019624,2]
[359726685,1746282642395,-450.0,0.00019624,2]
[359726686,1746282642405,-450.0,0.00019624,2]
[359726687,1746282642414,-474.32117263,0.00019624,2]
[359726688,1746282642423,-583.4,0.00019624,2]
[359726689,1746282642432,-450.0,0.00019624,2]
[359726690,1746282642442,-450.0,0.00019624,2]
[359726691,1746282642452,-450.0,0.00019624,2]
[359726692,1746282642462,-547.90544793,0.00019624,2]
[359726693,1746282642471,-450.0,0.00019624,2]
[359726694,1746282642480,-450.0,0.00019624,2]
[359726695,1746282642489,-450.0,0.00019624,2]
[359726696,1746282642498,-724.97,0.00019624,2]
[359726698,1746282642507,-450.0,0.00019624,2]
[359726700,1746282642516,-450.0,0.00019624,2]
[359726702,1746282642526,-450.0,0.00019624,2]
[359726703,1746282642535,-450.0,0.00019624,2]
[359726704,1746282642543,-450.0,0.00019624,2]
[359726705,1746282642552,-450.0,0.00019624,2]
[359726706,1746282642561,-450.0,0.00019624,2]
[359726707,1746282642570,-276.74108748,0.00019624,2]
[359726708,1746282642579,-290.0961764,0.00019624,2]
[359726710,1746282642588,-450.0,0.00019624,2]
[359726712,1746282642597,-450.0,0.00019624,2]
[359726714,1746282642607,-280.71919491,0.00019624,2]
[359726716,1746282642616,-450.0,0.00019624,2]
[359726718,1746282642625,-450.0,0.00019624,2]
[359726719,1746282642634,-512.52,0.00019624,2]
[359726720,1746282642643,-450.0,0.00019624,2]
[359726721,1746282642657,-412.14685447,0.00019624,2]
[359726723,1746282642667,-450.0,0.00019624,2]
[359726724,1746282642676,-450.0,0.00019624,2]
[359726725,1746282642685,-450.0,0.00019624,2]
[359726726,1746282642694,-450.0,0.00019624,2]
[359726727,1746282642703,-474.22018623,0.00019624,2]
[359726728,1746282642712,-698.86,0.00019624,2]
[359726729,1746282642722,-793.38,0.00019624,2]
[359726730,1746282642731,-474.06297841,0.00019624,2]
[359726731,1746282642741,-450.0,0.00019624,2]
[359726732,1746282642751,-450.0,0.00019624,2]
[359726733,1746282642760,-474.44796838,0.00019624,2]
[359726734,1746282642770,-450.0,0.00019624,2]
[359726735,1746282642779,-474.22776786,0.00019624,2]
[359726736,1746282642789,-482.77,0.00019624,2]
[359726737,1746282642799,-804.96,0.00019624,2]
[359726738,1746282642808,-450.0,0.00019624,2]
[359726739,1746282642818,-450.0,0.00019624,2]
[359726740,1746282642827,-450.0,0.00019624,2]
[359726741,1746282642836,-479.31271413,0.00019624,2]
[359726742,1746282642845,-450.0,0.00019624,2]
[359726743,1746282642854,-450.0,0.00019624,2]
[359726744,1746282642864,-450.0,0.00019624,2]
[359726745,1746282642873,-450.0,0.00019624,2]
[359726746,1746282642883,-450.0,0.00019624,2]
[359726747,1746282642893,-450.0,0.00019624,2]
[359726748,1746282642902,-603.77,0.00019624,2]
[359726749,1746282642911,-619.76,0.00019624,2]
[359726750,1746282642921,-450.0,0.00019624,2]
[359726751,1746282642931,-450.0,0.00019624,2]
[359726752,1746282642940,-450.0,0.00019624,2]
[359726753,1746282642950,-450.79,0.00019624,2]
[359726754,1746282642959,-472.79538287,0.00019624,2]
[359726755,1746282642968,-449.73983441,0.00019624,2]
[359726756,1746282642977,-2607.14,0.00019624,2]
[359726757,1746282642986,-450.0,0.00019624,2]
[359726758,1746282642996,-476.33421661,0.00019624,2]
[359726759,1746282643005,-450.0,0.00019624,2]
[359726760,1746282643014,-450.0,0.00019624,2]
[359726761,1746282643025,-506.11,0.00019624,2]
[359726762,1746282643035,-406.62245349,0.00019624,2]
[359726763,1746282643044,-450.0,0.00019624,2]
[359726764,1746282643054,-469.72,0.00019624,2]
[359726765,1746282643063,-662.05,0.00019624,2]
[359726766,1746282643073,-450.0,0.00019624,2]
[359726767,1746282643083,-450.0,0.00019624,2]
[359726768,1746282643092,-1418.8,0.00019624,2]
[359726769,1746282643102,-450.0,0.00019624,2]
[359726770,1746282643111,-450.0,0.00019624,2]
[359726771,1746282643120,-549.88,0.00019624,2]
[359726772,1746282643130,-473.63817928,0.00019624,2]
[359726773,1746282643139,-450.0,0.00019624,2]
[359726774,1746282643148,-1609.97,0.00019624,2]
[359726775,1746282643157,-500.0,0.00019624,2]
[359726776,1746282643167,-808.32,0.00019624,2]
[359726777,1746282643176,-450.0,0.00019624,2]
[359726778,1746282643185,-450.0,0.00019624,2]
[359726779,1746282643194,-484.03,0.00019624,2]
[359726780,1746282643203,-450.0,0.00019624,2]
[359726781,1746282643213,-997.72,0.00019624,2]
[359726782,1746282643222,-450.0,0.00019624,2]
[359726783,1746282643231,-450.0,0.00019624,2]
[359726784,1746282643241,-450.0,0.00019624,2]
[359726785,1746282643250,-1052.85,0.00019624,2]
[359726786,1746282643259,-450.0,0.00019624,2]
[359726787,1746282643269,-450.0,0.00019624,2]
[359726788,1746282643279,-450.0,0.00019624,2]
[359726789,1746282643288,-450.0,0.00019624,2]
[359726790,1746282643297,-450.0,0.00019624,2]
[359726791,1746282643307,-450.0,0.00019624,2]
[359726792,1746282643316,-450.0,0.00019624,2]
[359726793,1746282643327,-450.0,0.00019624,2]
[359726794,1746282643336,-450.0,0.00019624,2]
[359726795,1746282643345,-450.0,0.00019624,2]
[359726796,1746282643355,-556.52,0.00019624,2]
[359726797,1746282643365,-5031.75,0.00019624,2]
[359726798,1746282643374,-450.0,0.00019624,2]
[359726799,1746282643384,-500.0,0.00019624,2]
[359726800,1746282643393,-2554.92,0.00019624,2]
[359726801,1746282643403,-450.0,0.00019624,2]
[359726802,1746282643411,-450.0,0.00019624,2]
[359726803,1746282643421,-499.04539545,0.00019624,2]
[359726804,1746282643430,-500.0,0.00019624,2]
[359726805,1746282643439,-555.08,0.00019624,2]
[359726806,1746282643448,-450.0,0.00019624,2]
[359726807,1746282643458,-932.47,0.00019624,2]
[359726808,1746282643467,-450.0,0.00019624,2]
[359726809,1746282643476,-450.0,0.00019624,2]
[359726810,1746282643485,-450.0,0.00019624,2]
[359726811,1746282643494,-450.0,0.00019624,2]
[359726812,1746282643504,-6211.51,0.00019624,2]
[359726813,1746282643513,-450.0,0.00019624,2]
[359726814,1746282643522,-450.0,0.00019624,2]
[359726815,1746282643531,-498.62,0.00019624,2]
[359726816,1746282643540,-450.0,0.00019624,2]
[359726817,1746282643550,-450.0,0.00019624,2]
[359726818,1746282643559,-662.6,0.00019624,2]
[359726819,1746282643568,-450.0,0.00019624,2]
[359726820,1746282643577,-5633.86,0.00019624,2]
[359726821,1746282643586,-450.0,0.00019624,2]
[359726822,1746282643596,-450.0,0.00019624,2]
[359726823,1746282643605,-450.0,0.00019624,2]
[359726824,1746282643615,-450.0,0.00019624,2]
[359726825,1746282643624,-495.78440254,0.00019624,2]
[359726826,1746282643634,-777.46,0.00019624,2]
[359726827,1746282643643,-553.77,0.00019624,2]
[359726828,1746282643657,-450.0,0.00019624,2]
[359726829,1746282643666,-450.0,0.00019624,2]
[359726830,1746282643674,-450.0,0.00019624,2]
[359726831,1746282643682,-597.75,0.00019624,2]
[359726832,1746282643691,-735.96,0.00019624,2]
[359726833,1746282643699,-1995.8,0.00019624,2]
[359726834,1746282643706,-450.0,0.00019624,2]
[359726835,1746282643714,-5952.18,0.00019624,2]
[359726836,1746282643724,-1155.48,0.00019624,2]
[359726837,1746282643732,-450.0,0.00019624,2]
[359726838,1746282643742,-450.0,0.00019624,2]
[359726839,1746282643751,-450.0,0.00019624,2]
[359726840,1746282643760,-450.0,0.00019624,2]
[359726841,1746282643769,-106401.88,0.00019624,2]
[359726842,1746282643779,-241.32496352,0.00019624,2]
[359726843,1746282643789,-450.0,0.00019624,2]
[359726844,1746282643799,-450.0,0.00019624,2]
[359726845,1746282643807,-450.0,0.00019624,2]
[359726846,1746282643817,-450.0,0.00019624,2]
[359726847,1746282643827,-5270.56,0.00019624,2]
[359726848,1746282643837,-504.2529952,0.00019624,2]
[359726849,1746282643846,-380.67365843,0.00019624,2]
[359726850,1746282643855,-642.47,0.00019624,2]
[359726851,1746282643864,-450.0,0.00019624,2]
[359726852,1746282643873,-508.05,0.00019624,2]
[359726853,1746282643882,-450.0,0.00019624,2]
[359726854,1746282643891,-450.0,0.00019624,2]
[359726855,1746282643901,-450.0,0.00019624,2]
[359726856,1746282643910,-450.0,0.00019624,2]
[359726857,1746282643919,-300.0,0.00019624,2]
[359726858,1746282643928,-450.0,0.00019624,2]
[359726859,1746282643937,-25429.18,0.00019624,2]
[359726860,1746282643947,-1861.17,0.00019624,2]
[359726861,1746282643955,-653.76,0.00019624,2]
[359726862,1746282643964,-1019.76,0.00019624,2]
[359726863,1746282643974,-630.68,0.00019624,2]
[359726864,1746282643983,-450.0,0.00019624,2]
[359726865,1746282643992,-450.0,0.00019624,2]
[359726866,1746282644001,-450.0,0.00019624,2]
[359726867,1746282644010,-1774.52,0.00019624,2]
[359726868,1746282644019,-450.0,0.00019624,2]
[359726869,1746282644028,-765.66,0.00019624,2]
[359726870,1746282644037,-450.0,0.00019624,2]
[359726871,1746282644046,-450.0,0.00019624,2]
[359726872,1746282644054,-450.0,0.00019624,2]
[359726873,1746282644063,-450.0,0.00019624,2]
[359726874,1746282644072,-450.0,0.00019624,2]
[359726875,1746282644081,-16047.61,0.00019624,2]
[359726876,1746282644090,-450.0,0.00019624,2]
[359726877,1746282644099,-450.0,0.00019624,2]
[359726878,1746282644108,-629.24,0.00019624,2]
[359726879,1746282644117,-487.78513518,0.00019624,2]
[359726880,1746282644126,-450.0,0.00019624,2]
[359726881,1746282644135,-928.97,0.00019624,2]
[359726882,1746282644144,-450.0,0.00019624,2]
[359726883,1746282644153,-450.0,0.00019624,2]
[359726884,1746282644162,-450.0,0.00019624,2]
[359726885,1746282644172,-736.06,0.00019624,2]
[359726886,1746282644182,-450.0,0.00019624,2]
[359726887,1746282644191,-450.0,0.00019624,2]
[359726888,1746282644201,-450.0,0.00019624,2]
[359726889,1746282644210,-450.0,0.00019624,2]
[359726890,1746282644220,-450.0,0.00019624,2]
[359726891,1746282644229,-571.66696018,0.00019624,2]
[359726892,1746282644240,-450.0,0.00019624,2]
[359726893,1746282644249,-1248.63,0.00019624,2]
[359726894,1746282644259,-450.0,0.00019624,2]
[359726895,1746282644268,-450.0,0.00019624,2]
[359726896,1746282644278,-998.9,0.00019624,2]
[359726897,1746282644288,-450.0,0.00019624,2]
[359726898,1746282644298,-450.0,0.00019624,2]
[359726899,1746282644307,-450.0,0.00019624,2]
[359726900,1746282644317,-500.0,0.00019624,2]
[359726901,1746282644326,-450.0,0.00019624,2]
[359726902,1746282644335,-450.0,0.00019624,2]
[359726903,1746282644344,-554.23,0.00019624,2]
[359726904,1746282644353,-450.0,0.00019624,2]
[359726905,1746282644362,-450.0,0.00019624,2]
[359726906,1746282644372,-450.0,0.00019624,2]
[359726907,1746282644381,-450.0,0.00019624,2]
[359726908,1746282644390,-626.48,0.00019624,2]
[359726909,1746282644399,-450.0,0.00019624,2]
[359726910,1746282644409,-450.0,0.00019624,2]
[359726911,1746282644419,-450.0,0.00019624,2]
[359726912,1746282644428,-848.67,0.00019624,2]
[359726913,1746282644437,-450.0,0.00019624,2]
[359726914,1746282644447,-450.0,0.00019624,2]
[359726915,1746282644455,-450.0,0.00019624,2]
[359726916,1746282644464,-450.0,0.00019624,2]
[359726917,1746282644473,-450.0,0.00019624,2]
[359726918,1746282644482,-450.0,0.00019624,2]
[359726919,1746282644491,-450.0,0.00019624,2]
[359726920,1746282644501,-450.0,0.00019624,2]
[359726921,1746282644510,-536.24,0.00019624,2]
[359726922,1746282644519,-562.94038197,0.00019624,2]
[359726923,1746282644528,-450.0,0.00019624,2]
[359726924,1746282644538,-398.2486717,0.00019624,2]
[359726925,1746282644547,-743.58,0.00019624,2]
[359726926,1746282644555,-2640.69,0.00019624,2]
[359726927,1746282644564,-166.2246764,0.00019624,2]
[359726928,1746282644574,-550.86,0.00019624,2]
[359726929,1746282644583,-450.0,0.00019624,2]
[359726930,1746282644592,-506.13,0.00019624,2]
[359726931,1746282644601,-450.0,0.00019624,2]
[359726932,1746282644612,-1794.79,0.00019624,2]
[359726933,1746282644623,-533.2085114,0.00019624,2]
[359726934,1746282644632,-450.0,0.00019624,2]
[359726935,1746282644641,-456.68072204,0.00019624,2]
[359726936,1746282644651,-461.82,0.00019624,2]
[359726937,1746282644660,-450.0,0.00019624,2]
[359726938,1746282644669,-450.0,0.00019624,2]
[359726939,1746282644678,-450.0,0.00019624,2]
[359726940,1746282644688,-450.0,0.00019624,2]
[359726941,1746282644699,-450.0,0.00019624,2]
[359726942,1746282644709,-198.04898131,0.00019624,2]
[359726943,1746282644718,-507.13,0.00019624,2]
[359726944,1746282644729,-450.0,0.00019624,2]
[359726945,1746282644738,-450.0,0.00019624,2]
[359726946,1746282644748,-450.0,0.00019624,2]
[359726947,1746282644757,-582.62,0.00019624,2]
[359726948,1746282644767,-450.0,0.00019624,2]
[359726949,1746282644775,-694.36,0.00019624,2]
[359726950,1746282644785,-839.8,0.00019624,2]
[359726951,1746282644795,-1252.3,0.00019624,2]
[359726952,1746282644806,-324.99534254,0.00019624,2]
[359726953,1746282644815,-450.0,0.00019624,2]
[359726954,1746282644824,-450.0,0.00019624,2]
[359726955,1746282644833,-260.07111918,0.00019624,2]
[359726956,1746282644845,-450.0,0.00019624,2]
[359726957,1746282644855,-450.0,0.00019624,2]
[359726958,1746282644866,-450.0,0.00019624,2]
[359726959,1746282644877,-450.0,0.00019624,2]
[359726960,1746282644887,-450.0,0.00019624,2]
[359726961,1746282644897,-450.0,0.00019624,2]
[359726962,1746282644907,-450.0,0.00019624,2]
[359726963,1746282644918,-450.0,0.00019624,2]
[359726964,1746282644929,-450.0,0.00019624,2]
[359726965,1746282644940,-450.0,0.00019625,2]
[359726966,1746282644951,-1212.56,0.00019625,2]
[359726967,1746282644962,-450.0,0.00019625,2]
[359726968,1746282644971,-450.0,0.00019625,2]
[359726969,1746282644980,-450.0,0.00019625,2]
[359726970,1746282644989,-450.0,0.00019625,2]
[359726971,1746282644998,-585.82,0.00019625,2]
[359726972,1746282645007,-609.98,0.00019625,2]
[359726973,1746282645017,-450.0,0.00019625,2]
[359726974,1746282645026,-450.0,0.00019625,2]
[359726975,1746282645036,-450.0,0.00019625,2]
[359726976,1746282645049,-601.1,0.00019625,2]
[359726977,1746282645059,-602.42,0.00019625,2]
[359726978,1746282645069,-450.0,0.00019625,2]
[359726979,1746282645078,-450.0,0.00019625,2]
[359726980,1746282645087,-1959.72,0.00019625,2]
[359726981,1746282645096,-450.0,0.00019625,2]
[359726982,1746282645105,-450.0,0.00019625,2]
[359726983,1746282645114,-478.4757296,0.00019625,2]
[359726984,1746282645122,-392.80773028,0.00019625,2]
[359726985,1746282645132,-687.87,0.00019625,2]
[359726986,1746282645141,-450.0,0.00019625,2]
[359726987,1746282645150,-450.0,0.00019625,2]
[359726988,1746282645159,-450.0,0.00019625,2]
[359726989,1746282645169,-450.0,0.00019625,2]
[359726990,1746282645178,-739.86,0.00019625,2]
[359726991,1746282645188,-651.89,0.00019625,2]
[359726992,1746282645197,-450.0,0.00019625,2]
[359726993,1746282645207,-450.0,0.00019625,2]
[359726994,1746282645217,-450.0,0.00019625,2]
[359726995,1746282645226,-500.0,0.00019625,2]
[359726996,1746282645235,-450.0,0.00019625,2]
[359726997,1746282645244,-450.0,0.00019625,2]
[359726998,1746282645254,-734.16,0.00019625,2]
[359726999,1746282645263,-943.7,0.00019625,2]
[359727000,1746282645272,-450.0,0.00019625,2]
[359727001,1746282645281,-450.0,0.00019625,2]
[359727002,1746282645291,-1418.31,0.00019625,2]
[359727003,1746282645300,-887.97,0.00019625,2]
[359727004,1746282645309,-546.76,0.00019625,2]
[359727005,1746282645319,-877.65,0.00019625,2]
[359727006,1746282645328,-571.25,0.00019625,2]
[359727007,1746282645337,-450.0,0.00019625,2]
[359727008,1746282645346,-1612.67,0.00019625,2]
[359727009,1746282645355,-450.0,0.00019625,2]
[359727010,1746282645365,-684.2,0.00019625,2]
[359727011,1746282645374,-334.85993224,0.00019625,2]
[359727012,1746282645384,-601.03,0.00019625,2]
[359727013,1746282645393,-450.0,0.00019625,2]
[359727014,1746282645403,-450.0,0.00019625,2]
[359727015,1746282645414,-450.0,0.00019625,2]
[359727016,1746282645423,-450.0,0.00019625,2]
[359727017,1746282645433,-1194.27,0.00019625,2]
[359727018,1746282645444,-450.0,0.00019625,2]
[359727019,1746282645453,-450.0,0.00019625,2]
[359727020,1746282645463,-450.0,0.00019625,2]
[359727021,1746282645473,-457.37785718,0.00019625,2]
[359727022,1746282645482,-450.0,0.00019625,2]
[359727023,1746282645492,-450.0,0.00019625,2]
[359727024,1746282645501,-450.0,0.00019625,2]
[359727025,1746282645511,-450.0,0.00019625,2]
[359727026,1746282645521,-202.81456167,0.00019625,2]
[359727027,1746282645530,-2557.27,0.00019625,2]
[359727028,1746282645539,-450.0,0.00019625,2]
[359727029,1746282645549,-1113.94,0.00019625,2]
[359727030,1746282645559,-520.71,0.00019625,2]
[359727031,1746282645568,-2291.96,0.00019625,2]
[359727032,1746282645578,-450.0,0.00019625,2]
[359727034,1746282645587,-660.99,0.00019625,2]
[359727035,1746282645597,-450.0,0.00019625,2]
[359727036,1746282645607,-450.0,0.00019625,2]
[359727037,1746282645617,-450.0,0.00019625,2]
[359727038,1746282645627,-450.0,0.00019625,2]
[359727039,1746282645635,-514.99,0.00019625,2]
[359727040,1746282645645,-982.71,0.00019625,2]
[359727041,1746282645659,-849.0,0.00019625,2]
[359727042,1746282645669,-450.0,0.00019625,2]
[359727043,1746282645679,-450.0,0.00019625,2]
[359727044,1746282645688,-450.03,0.00019625,2]
[359727045,1746282645698,-450.0,0.00019625,2]
[359727046,1746282645708,-777.61,0.00019625,2]
[359727047,1746282645719,-450.0,0.00019625,2]
[359727048,1746282645728,-733.56,0.00019625,2]
[359727049,1746282645737,-616.31,0.00019625,2]
[359727050,1746282645748,-5368.2153691,0.00019637,2]
[359727051,1746282645758,-150.0,0.0001964,2]
[359727052,1746282645767,-150.0,0.00019641,2]
[359727053,1746282645777,-150.0,0.00019641,2]
[359727054,1746282645787,-150.0,0.00019641,2]
[359727055,1746282645796,-500.0,0.00019641,2]
[359727056,1746282645805,-150.0,0.00019641,2]
[359727057,1746282645815,-150.0,0.00019641,2]
[359727058,1746282645825,-150.0,0.00019641,2]
[359727059,1746282645836,-150.0,0.00019641,2]
[359727060,1746282645846,-500.0,0.00019641,2]
[359727061,1746282645855,-150.0,0.00019641,2]
[359727062,1746282645865,-500.0,0.00019641,2]
[359727063,1746282645875,-500.0,0.00019641,2]
[359727064,1746282645884,-150.0,0.00019641,2]
[359727065,1746282645894,-150.0,0.00019641,2]
[359727066,1746282645904,-3089.14654292,0.00019649,2]
[359727067,1746282645914,-999.0,0.00019671,2]
[359727068,1746282645923,-500.0,0.00019673,2]
[359727069,1746282645933,-500.0,0.00019673,2]
[359727070,1746282645944,-500.0,0.00019673,2]
[359727071,1746282645954,-500.0,0.00019673,2]
[359727072,1746282645964,-500.0,0.00019673,2]
[359727073,1746282645974,-500.0,0.00019673,2]
[359727074,1746282645984,-500.0,0.00019673,2]
[359727075,1746282645994,-170.0108309,0.00019673,2]
[359727076,1746282646004,-366.33056747,0.00019673,2]